fUSD/lending_fUSD_20251112
["ID","MTS","AMOUNT","RATE_DAILY","PERIOD"]
[393735404,1762956670445,-952.35,0.00039201,20]
[393735405,1762956670455,-660.97,0.00039201,20]
[393735406,1762956670464,-500.0,0.00039201,20]
[393735407,1762956670474,-952.35,0.00039201,20]
[393735408,1762956670485,-540.76,0.00039201,20]
[393735409,1762956670495,-540.76,0.00039201,20]
[393735410,1762956670505,-601.4,0.00039201,20]
[393735411,1762956670514,-601.4,0.00039201,20]
[393735412,1762956670523,-840.02,0.00039201,20]
[393735413,1762956670532,-840.02,0.00039201,20]
[393735414,1762956670541,-1035.47,0.00039201,20]
[393735415,1762956670550,-1035.47,0.00039201,20]
[393735416,1762956670560,-500.0,0.00039201,20]
[393735417,1762956670569,-500.0,0.00039201,20]
[393735418,1762956670578,-1556.2,0.00039201,20]
[393735419,1762956670587,-1556.2,0.00039201,20]
[393735420,1762956670597,-7930.44,0.00039201,20]
[393735421,1762956670606,-7930.44,0.00039201,20]
[393735422,1762956670615,-500.0,0.00039201,20]
[393735423,1762956670624,-500.0,0.00039201,20]
[393735424,1762956670633,-500.0,0.00039201,20]
[393735425,1762956670643,-500.0,0.00039201,20]
[393735426,1762956670652,-500.0,0.00039201,20]
[393735427,1762956670662,-500.0,0.00039201,20]
[393735428,1762956670671,-922.6,0.00039201,20]
[393735429,1762956670681,-922.6,0.00039201,20]
[393735430,1762956670691,-778.92,0.00039201,20]
[393735431,1762956670700,-778.92,0.00039201,20]
[393735432,1762956670710,-626.6,0.00039201,20]
[393735433,1762956670721,-626.6,0.00039201,20]
[393735434,1762956670730,-823.17,0.00039201,20]
[393735435,1762956670740,-823.17,0.00039201,20]
[393735436,1762956670750,-500.0,0.00039201,20]
[393735437,1762956670759,-500.0,0.00039201,20]
[393735438,1762956670768,-597.47,0.00039201,20]
[393735439,1762956670778,-597.47,0.00039201,20]
[393735440,1762956670787,-504.05,0.00039201,20]
[393735441,1762956670797,-504.05,0.00039201,20]
[393735442,1762956670806,-500.0,0.00039201,20]
[393735443,1762956670815,-500.0,0.00039201,20]
[393735444,1762956670825,-1258.69,0.00039201,20]
[393735445,1762956670835,-1258.69,0.00039201,20]
[393735446,1762956670848,-500.0,0.00039201,20]
[393735447,1762956670859,-500.0,0.00039201,20]
[393735448,1762956670868,-815.43,0.00039201,20]
[393735449,1762956670879,-815.43,0.00039201,20]
[393735450,1762956670889,-500.0,0.00039201,20]
[393735451,1762956670899,-500.0,0.00039201,20]
[393735452,1762956670910,-500.0,0.00039201,20]
[393735453,1762956670921,-237.40300563,0.00039201,20]
[393735454,1762956670930,-717.33,0.00039201,20]
[393735455,1762956670944,-717.33,0.00039201,20]
[393735456,1762956670953,-500.0,0.00039201,20]
[393735457,1762956670963,-500.0,0.00039201,20]
[393735458,1762956670973,-1605.45,0.00039201,20]
[393735459,1762956670983,-1605.45,0.00039201,20]
[393735460,1762956670993,-500.0,0.00039201,20]
[393735461,1762956671003,-172.7357277,0.00039201,20]
[393735462,1762956671012,-298.86121657,0.00039201,20]
[393735463,1762956671022,-500.0,0.00039201,20]
[393735464,1762956671033,-500.0,0.00039201,20]
[393735465,1762956671043,-500.0,0.00039201,20]
[393735466,1762956671052,-500.0,0.00039201,20]
[393735467,1762956671062,-379.29337459,0.00039201,20]
[393735468,1762956671072,-500.0,0.00039201,20]
[393735469,1762956671081,-500.0,0.00039201,20]
[393735470,1762956671090,-500.0,0.00039201,20]
[393735471,1762956671099,-500.0,0.00039201,20]
[393735472,1762956671109,-500.0,0.00039201,20]
[393735473,1762956671118,-556.38563291,0.00039201,20]
[393735474,1762956671132,-630.23,0.00039201,20]
[393735475,1762956671142,-630.23,0.00039201,20]
[393735476,1762956671153,-500.0,0.00039201,20]
[393735477,1762956671163,-192.81728406,0.00039201,20]
[393735478,1762956671172,-500.0,0.00039201,20]
[393735479,1762956671181,-181.19671895,0.00039201,20]
[393735480,1762956671191,-876.09,0.00039201,20]
[393735481,1762956671201,-876.09,0.00039201,20]
[393735482,1762956671211,-653.98,0.00039201,20]
[393735483,1762956671221,-653.98,0.00039201,20]
[393735484,1762956671230,-500.0,0.00039201,20]
[393735485,1762956671240,-500.0,0.00039201,20]
[393735486,1762956671253,-500.0,0.00039201,20]
[393735487,1762956671263,-500.0,0.00039201,20]
[393735488,1762956671272,-914.0,0.00039201,20]
[393735489,1762956671282,-914.0,0.00039201,20]
[393735490,1762956671291,-744.88,0.00039201,20]
[393735491,1762956671301,-744.88,0.00039201,20]
[393735492,1762956671310,-535.59,0.00039201,20]
[393735493,1762956671320,-535.59,0.00039201,20]
[393735494,1762956671333,-661.38,0.00039201,20]
[393735495,1762956671343,-661.38,0.00039201,20]
[393735496,1762956671352,-500.0,0.00039201,20]
[393735497,1762956671362,-500.0,0.00039201,20]
[393735498,1762956671371,-757.81,0.00039201,20]
[393735499,1762956671383,-757.81,0.00039201,20]
[393735500,1762956671392,-688.44,0.00039201,20]
[393735501,1762956671402,-688.44,0.00039201,20]
[393735502,1762956671413,-154.03,0.00039206,120]
[393735503,1762956671423,-168.0,0.00039239,2]
[393735504,1762956671435,-172.94536,0.0003924,2]
[393735505,1762956671445,-238.76875968,0.00039242,14]
[393735506,1762956671455,-4738.99618093,0.00039255,2]
[393735507,1762956671465,-168.0,0.00039271,2]
[393735508,1762956671474,-2026.7258,0.00039299,2]
[393735509,1762956671483,-447.82,0.000393,30]
[393735510,1762956671492,-14254.33,0.000393,14]
[393735511,1762956671502,-5100.0,0.000393,14]
[393735512,1762956671511,-274.53,0.00039301,2]
[393735513,1762956671524,-154.03,0.00039306,120]
[393735514,1762956671534,-166.66,0.00039316,2]
[393735515,1762956671543,-500.0,0.00039335,10]
[393735516,1762956671552,-163.7947703,0.00039335,120]
[393735517,1762956671561,-194.61212321,0.00039335,15]
[393735518,1762956671571,-355.79899462,0.00039335,2]
[393735519,1762956671580,-218.314595,0.00039335,15]
[393735520,1762956671590,-150.0,0.00039335,15]
[393735521,1762956671599,-500.0,0.00039342,30]
[393735522,1762956671610,-200.49008396,0.00039344,11]
[393735523,1762956671619,-200.49008386,0.00039344,11]
[393735524,1762956671629,-200.49008386,0.00039344,11]
[393735525,1762956671638,-200.49008386,0.00039344,11]
[393735526,1762956671649,-162.68084933,0.00039376,20]
[393735527,1762956671658,-4738.99618093,0.00039397,2]
[393735528,1762956671668,-200.49008386,0.00039397,11]
[393735529,1762956671677,-428.94,0.00039397,2]
[393735530,1762956671687,-1000.0,0.000394,14]
[393735531,1762956671696,-206.3313054,0.00039404,120]
[393735532,1762956671705,-154.03,0.00039406,120]
[393735533,1762956671718,-1014.92426916,0.00039427,20]
[393735534,1762956671728,-1339.96041127,0.00039427,20]
[393735535,1762956671737,-864.01079296,0.00039462,30]
[393735536,1762956671746,-350.0,0.00039472,10]
[393735537,1762956671756,-172.94537,0.0003949,2]
[393735538,1762956671766,-1000.0,0.000395,14]
[393735539,1762956671775,-200.49008386,0.00039503,11]
[393735540,1762956671784,-4738.99618093,0.00039538,2]
[393735541,1762956671794,-171.0,0.00039538,2]
[393735542,1762956671803,-163.0,0.00039558,120]
[393735543,1762956671813,-1000.0,0.000396,14]
[393735544,1762956671822,-174.31941246,0.00039605,13]
[393735545,1762956671832,-156.53410877,0.00039609,15]
[393735546,1762956671844,-200.49008386,0.00039609,11]
[393735547,1762956671853,-554.32,0.00039616,30]
[393735548,1762956671863,-218.27,0.00039648,12]
[393735549,1762956671872,-4738.99618093,0.00039679,2]
[393735550,1762956671882,-1000.0,0.000397,14]
[393735551,1762956671891,-200.49008386,0.00039714,12]
[393735552,1762956671901,-501.72670802,0.00039721,5]
[393735553,1762956671910,-500.0,0.00039728,30]
[393735554,1762956671925,-172.94537,0.0003974,2]
[393735555,1762956671935,-168.0,0.00039785,2]
[393735556,1762956671944,-1318.0,0.000398,14]
[393735557,1762956671954,-2000.0,0.00039813,3]
[393735558,1762956671963,-4738.99618093,0.0003982,15]
[393735559,1762956671973,-200.49008386,0.0003982,12]
[393735560,1762956671983,-166.66,0.00039829,2]
[393735561,1762956671993,-457.27924875,0.0003985,15]
[393735562,1762956672002,-447.52408465,0.0003985,15]
[393735563,1762956672012,-160.0,0.00039889,15]
[393735564,1762956672022,-200.49008386,0.00039926,12]
[393735565,1762956672031,-4738.99618093,0.00039962,15]
[393735566,1762956672041,-150.75752155,0.00039973,5]
[393735567,1762956672052,-207.0,0.00039993,120]
[393735568,1762956672061,-777.9552983,0.00039995,120]
[393735569,1762956672071,-500.0,0.00039998,20]
[393735570,1762956672081,-1161.71,0.00039999,20]
[393735571,1762956672091,-703.28,0.00039999,20]
[393735572,1762956672100,-500.0,0.00039999,20]
[393735573,1762956672109,-500.0,0.00039999,20]
[393735574,1762956672119,-500.0,0.00039999,20]
[393735575,1762956672128,-500.0,0.00039999,20]
[393735576,1762956672138,-169.02791292,0.00039999,20]
[393735577,1762956672147,-500.0,0.00039999,20]
[393735578,1762956672157,-586.07,0.00039999,20]
[393735579,1762956672166,-500.0,0.00039999,20]
[393735580,1762956672175,-500.0,0.00039999,20]
[393735581,1762956672184,-500.0,0.00039999,20]
[393735582,1762956672194,-445.26538507,0.00039999,20]
[393735583,1762956672203,-500.0,0.00039999,20]
[393735584,1762956672212,-896.65,0.00039999,20]
[393735585,1762956672222,-501.01,0.00039999,20]
[393735586,1762956672231,-500.0,0.00039999,20]
[393735587,1762956672241,-500.0,0.00039999,20]
[393735588,1762956672251,-559.71,0.00039999,20]
[393735589,1762956672260,-680.4,0.00039999,20]
[393735590,1762956672270,-500.0,0.00039999,20]
[393735591,1762956672280,-749.36,0.00039999,20]
[393735592,1762956672290,-186.09609615,0.00039999,20]
[393735593,1762956672299,-500.0,0.00039999,20]
[393735594,1762956672309,-622.83,0.00039999,20]
[393735595,1762956672329,-500.0,0.00039999,20]
[393735596,1762956672339,-500.0,0.00039999,20]
[393735597,1762956672348,-500.0,0.00039999,10]
[393735598,1762956672357,-500.0,0.00039999,20]
[393735599,1762956672367,-500.0,0.00039999,20]
[393735600,1762956672377,-552.21,0.00039999,20]
[393735601,1762956672387,-660.97,0.00039999,20]
[393735602,1762956672396,-449.91171785,0.00039999,20]
[393735603,1762956672405,-952.35,0.00039999,20]
[393735604,1762956672415,-540.76,0.00039999,20]
[393735605,1762956672424,-601.4,0.00039999,20]
[393735606,1762956672433,-840.02,0.00039999,20]
[393735607,1762956672442,-1035.47,0.00039999,20]
[393735608,1762956672452,-500.0,0.00039999,20]
[393735609,1762956672462,-1556.2,0.00039999,20]
[393735610,1762956672471,-7930.44,0.00039999,20]
[393735611,1762956672480,-331.00897495,0.00039999,20]
[393735612,1762956672489,-500.0,0.00039999,20]
[393735613,1762956672499,-500.0,0.00039999,20]
[393735614,1762956672508,-922.6,0.00039999,20]
[393735615,1762956672518,-778.92,0.00039999,20]
[393735616,1762956672528,-626.6,0.00039999,20]
[393735617,1762956672537,-823.17,0.00039999,20]
[393735618,1762956672547,-500.0,0.00039999,20]
[393735619,1762956672558,-597.47,0.00039999,20]
[393735620,1762956672568,-504.05,0.00039999,20]
[393735621,1762956672577,-500.0,0.00039999,20]
[393735622,1762956672587,-1258.69,0.00039999,20]
[393735623,1762956672597,-500.0,0.00039999,20]
[393735624,1762956672606,-815.43,0.00039999,20]
[393735625,1762956672615,-500.0,0.00039999,20]
[393735626,1762956672625,-717.33,0.00039999,20]
[393735627,1762956672635,-500.0,0.00039999,20]
[393735628,1762956672645,-1605.45,0.00039999,20]
[393735629,1762956672655,-500.0,0.00039999,20]
[393735630,1762956672667,-500.0,0.00039999,20]
[393735631,1762956672676,-360.00035689,0.00039999,20]
[393735632,1762956672685,-341.37605668,0.00039999,20]
[393735633,1762956672694,-630.23,0.00039999,20]
[393735634,1762956672704,-999.0,0.00039999,120]
[393735635,1762956672713,-876.09,0.00039999,20]
[393735636,1762956672723,-653.98,0.00039999,20]
[393735637,1762956672732,-500.0,0.00039999,20]
[393735638,1762956672742,-500.0,0.00039999,20]
[393735639,1762956672751,-914.0,0.00039999,20]
[393735640,1762956672761,-744.88,0.00039999,20]
[393735641,1762956672770,-535.59,0.00039999,20]
[393735642,1762956672780,-661.38,0.00039999,20]
[393735643,1762956672789,-209.46985516,0.00039999,20]
[393735644,1762956672800,-757.81,0.00039999,20]
[393735645,1762956672810,-688.44,0.00039999,20]
[393735646,1762956673005,-5000.0,0.0004,3]
[393735647,1762956673015,-416.13183896,0.0004,7]
[393735648,1762956673025,-965.83260051,0.0004,7]
[393735649,1762956673034,-518.73138154,0.0004,10]
[393735650,1762956673045,-100000.0,0.0004,14]
[393735651,1762956673054,-150.0,0.0004,5]
[393735652,1762956673064,-250.0,0.0004,14]
[393735653,1762956673074,-250.0,0.0004,14]
[393735654,1762956673083,-250.0,0.0004,14]
[393735655,1762956673093,-250.0,0.0004,14]
[393735656,1762956673102,-250.0,0.0004,14]
[393735657,1762956673111,-250.0,0.0004,14]
[393735658,1762956673120,-250.0,0.0004,14]
[393735659,1762956673129,-250.0,0.0004,14]
[393735660,1762956673139,-250.0,0.0004,14]
[393735661,1762956673148,-250.0,0.0004,14]
[393735662,1762956673158,-250.0,0.0004,14]
[393735663,1762956673167,-250.0,0.0004,14]
[393735664,1762956673176,-250.0,0.0004,14]
[393735665,1762956673185,-250.0,0.0004,14]
[393735666,1762956673194,-250.0,0.0004,14]
[393735667,1762956673203,-250.0,0.0004,14]
[393735668,1762956673213,-250.0,0.0004,14]
[393735669,1762956673222,-250.0,0.0004,14]
[393735670,1762956673231,-250.0,0.0004,14]
[393735671,1762956673240,-250.0,0.0004,14]
[393735672,1762956673249,-250.0,0.0004,14]
[393735673,1762956673258,-250.0,0.0004,14]
[393735674,1762956673268,-250.0,0.0004,14]
[393735675,1762956673276,-250.0,0.0004,14]
[393735676,1762956673285,-250.0,0.0004,14]
[393735677,1762956673294,-250.0,0.0004,14]
[393735678,1762956673304,-250.0,0.0004,14]
[393735679,1762956673314,-250.0,0.0004,14]
[393735680,1762956673324,-250.0,0.0004,14]
[393735681,1762956673333,-250.0,0.0004,14]
[393735682,1762956673343,-250.0,0.0004,14]
[393735683,1762956673352,-250.0,0.0004,14]
[393735684,1762956673362,-250.0,0.0004,14]
[393735685,1762956673371,-250.0,0.0004,14]
[393735686,1762956673380,-241.31658838,0.0004,2]
[393735687,1762956673389,-1000.0,0.0004,20]
[393735688,1762956673398,-1590.41,0.0004,120]
[393735689,1762956673407,-635.83,0.0004,120]
[393735690,1762956673416,-1107.37,0.0004,120]
[393735691,1762956673426,-218.3,0.0004,120]
[393735692,1762956673435,-1082.27,0.0004,120]
[393735693,1762956673444,-190.54,0.0004,120]
[393735694,1762956673453,-294.1569,0.0004,120]
[393735695,1762956673462,-5000.0,0.0004,2]
[393735696,1762956673471,-5000.0,0.0004,2]
[393735697,1762956673481,-5000.0,0.0004,2]
[393735698,1762956673489,-5000.0,0.0004,2]
[393735699,1762956673499,-5000.0,0.0004,2]
[393735700,1762956673508,-250.0,0.0004,120]
[393735701,1762956673517,-250.0,0.0004,120]
[393735702,1762956673526,-250.0,0.0004,120]
[393735703,1762956673535,-250.0,0.0004,120]
[393735704,1762956673544,-250.0,0.0004,120]
[393735705,1762956673555,-250.000001,0.0004,97]
[393735706,1762956673566,-2500.0,0.0004,90]
[393735707,1762956673575,-2500.0,0.0004,90]
[393735708,1762956673584,-2500.0,0.0004,90]
[393735709,1762956673594,-2500.0,0.0004,90]
[393735710,1762956673603,-2500.0,0.0004,90]
[393735711,1762956673612,-2500.0,0.0004,90]
[393735712,1762956673621,-2500.0,0.0004,90]
[393735713,1762956673630,-2500.0,0.0004,90]
[393735714,1762956673639,-2500.0,0.0004,90]
[393735715,1762956673649,-2500.0,0.0004,90]
[393735716,1762956673659,-2500.0,0.0004,90]
[393735717,1762956673668,-2500.0,0.0004,90]
[393735718,1762956673676,-2500.0,0.0004,90]
[393735719,1762956673685,-2500.0,0.0004,90]
[393735720,1762956673695,-2500.0,0.0004,90]
[393735721,1762956673704,-2500.0,0.0004,90]
[393735722,1762956673714,-2500.0,0.0004,90]
[393735723,1762956673723,-2500.0,0.0004,90]
[393735724,1762956673732,-2500.0,0.0004,90]
[393735725,1762956673742,-2500.0,0.0004,90]
[393735726,1762956673751,-518.57722543,0.0004,90]
[393735727,1762956673760,-398.22891349,0.0004,60]
[393735728,1762956673769,-250.0,0.0004,120]
[393735729,1762956673778,-206.52380219,0.00040013,120]
[393735730,1762956673788,-200.49008386,0.00040032,12]
[393735731,1762956673797,-1839.18,0.0004004,15]
[393735732,1762956673806,-168.66,0.0004004,15]
[393735733,1762956673815,-445.0,0.00040072,4]
[393735734,1762956673824,-250.0,0.000401,120]
[393735735,1762956673834,-300.0,0.000401,120]
[393735736,1762956673848,-4738.99618093,0.00040103,15]
[393735737,1762956673859,-2500.0,0.0004012,14]
[393735738,1762956673868,-2500.0,0.00040124,14]
[393735739,1762956673877,-2500.0,0.00040125,14]
[393735740,1762956673886,-2500.0,0.00040129,14]
[393735741,1762956673895,-2500.0,0.00040129,14]
[393735742,1762956673905,-174.31941246,0.00040132,14]
[393735743,1762956673914,-2500.0,0.00040133,14]
[393735744,1762956673927,-2500.0,0.00040134,14]
[393735745,1762956673940,-2500.0,0.00040134,14]
[393735746,1762956673950,-2500.0,0.00040134,14]
[393735747,1762956673960,-2500.0,0.00040134,14]
[393735748,1762956673970,-500.0,0.00040134,20]
[393735749,1762956673980,-500.0,0.00040134,20]
[393735750,1762956673991,-1212.44,0.00040135,20]
[393735751,1762956674001,-1161.71,0.00040135,20]
[393735752,1762956674010,-1161.71,0.00040135,20]
[393735753,1762956674020,-1161.71,0.00040135,20]
[393735754,1762956674030,-1161.71,0.00040135,20]
[393735755,1762956674039,-1161.71,0.00040135,20]
[393735756,1762956674050,-1161.71,0.00040135,20]
[393735757,1762956674059,-1161.71,0.00040135,20]
[393735758,1762956674069,-1161.71,0.00040135,20]
[393735759,1762956674079,-1161.73,0.00040135,20]
[393735760,1762956674088,-703.28,0.00040135,20]
[393735761,1762956674098,-703.28,0.00040135,20]
[393735762,1762956674107,-703.28,0.00040135,20]
[393735763,1762956674117,-703.28,0.00040135,20]
[393735764,1762956674126,-703.28,0.00040135,20]
[393735765,1762956674136,-703.28,0.00040135,20]
[393735766,1762956674146,-703.28,0.00040135,20]
[393735767,1762956674155,-703.28,0.00040135,20]
[393735768,1762956674165,-703.41,0.00040135,20]
[393735769,1762956674174,-500.0,0.00040135,20]
[393735770,1762956674184,-243.46432724,0.00040135,20]
[393735771,1762956674194,-317.59593302,0.00040135,20]
[393735772,1762956674204,-500.0,0.00040135,20]
[393735773,1762956674213,-580.6856592,0.00040135,20]
[393735774,1762956674224,-500.0,0.00040135,20]
[393735775,1762956674234,-500.0,0.00040135,20]
[393735776,1762956674244,-500.0,0.00040135,20]
[393735777,1762956674254,-485.05606588,0.00040135,20]
[393735778,1762956674264,-586.07,0.00040135,20]
[393735779,1762956674273,-586.07,0.00040135,20]
[393735780,1762956674283,-586.07,0.00040135,20]
[393735781,1762956674293,-586.07,0.00040135,20]
[393735782,1762956674303,-586.07,0.00040135,20]
[393735783,1762956674313,-586.07,0.00040135,20]
[393735784,1762956674326,-586.07,0.00040135,20]
[393735785,1762956674336,-586.07,0.00040135,20]
[393735786,1762956674346,-586.14912167,0.00040135,20]
[393735787,1762956674356,-500.0,0.00040135,20]
[393735788,1762956674365,-500.0,0.00040135,20]
[393735789,1762956674376,-500.0,0.00040135,20]
[393735790,1762956674385,-500.0,0.00040135,20]
[393735791,1762956674397,-500.0,0.00040135,20]
[393735792,1762956674410,-500.0,0.00040135,20]
[393735793,1762956674421,-500.0,0.00040135,20]
[393735794,1762956674433,-168.04916536,0.00040135,20]
[393735795,1762956674442,-500.0,0.00040135,20]
[393735796,1762956674451,-500.0,0.00040135,20]
[393735797,1762956674461,-500.0,0.00040135,20]
[393735798,1762956674470,-500.0,0.00040135,20]
[393735799,1762956674479,-500.0,0.00040135,20]
[393735800,1762956674488,-500.0,0.00040135,20]
[393735801,1762956674498,-500.0,0.00040135,20]
[393735802,1762956674507,-500.0,0.00040135,20]
[393735803,1762956674517,-500.0,0.00040135,20]
[393735804,1762956674526,-500.0,0.00040135,20]
[393735805,1762956674535,-500.0,0.00040135,20]
[393735806,1762956674545,-285.28971759,0.00040135,20]
[393735807,1762956674555,-500.0,0.00040135,20]
[393735808,1762956674565,-500.0,0.00040135,20]
[393735809,1762956674575,-500.0,0.00040135,20]
[393735810,1762956674585,-390.60153007,0.00040135,20]
[393735811,1762956674595,-500.0,0.00040135,20]
[393735812,1762956674605,-500.0,0.00040135,20]
[393735813,1762956674615,-500.0,0.00040135,20]
[393735814,1762956674624,-500.0,0.00040135,20]
[393735815,1762956674633,-500.0,0.00040135,20]
[393735816,1762956674643,-500.0,0.00040135,20]
[393735817,1762956674653,-591.7394954,0.00040135,20]
[393735818,1762956674663,-896.65,0.00040135,20]
[393735819,1762956674673,-896.65,0.00040135,20]
[393735820,1762956674682,-896.65,0.00040135,20]
[393735821,1762956674691,-896.65,0.00040135,20]
[393735822,1762956674701,-896.65,0.00040135,20]
[393735823,1762956674710,-896.65,0.00040135,20]
[393735824,1762956674723,-896.65,0.00040135,20]
[393735825,1762956674733,-896.65,0.00040135,20]
[393735826,1762956674743,-896.82194253,0.00040135,20]
[393735827,1762956674752,-501.01,0.00040135,20]
[393735828,1762956674761,-501.01,0.00040135,20]
[393735829,1762956674771,-501.01,0.00040135,20]
[393735830,1762956674781,-501.01,0.00040135,20]
[393735831,1762956674791,-501.01,0.00040135,20]
[393735832,1762956674802,-501.01,0.00040135,20]
[393735833,1762956674812,-500.0,0.00040135,20]
[393735834,1762956674821,-501.01,0.00040135,20]
[393735835,1762956674831,-500.0,0.00040135,20]
[393735836,1762956674842,-500.0,0.00040135,20]
[393735837,1762956674855,-500.0,0.00040135,20]
[393735838,1762956674865,-500.0,0.00040135,20]
[393735839,1762956674874,-501.01,0.00040135,20]
[393735840,1762956674883,-500.0,0.00040135,20]
[393735841,1762956674894,-500.0,0.00040135,20]
[393735842,1762956674903,-501.23379463,0.00040135,20]
[393735843,1762956674912,-500.0,0.00040135,20]
[393735844,1762956674921,-500.0,0.00040135,20]
[393735845,1762956674931,-500.0,0.00040135,20]
[393735846,1762956674940,-238.54434985,0.00040135,20]
[393735847,1762956674949,-500.0,0.00040135,20]
[393735848,1762956674959,-500.0,0.00040135,20]
[393735849,1762956674968,-500.0,0.00040135,20]
[393735850,1762956674977,-175.18588893,0.00040135,20]
[393735851,1762956674987,-559.71,0.00040135,20]
[393735852,1762956674996,-559.71,0.00040135,20]
[393735853,1762956675005,-559.71,0.00040135,20]
[393735854,1762956675014,-559.71,0.00040135,20]
[393735855,1762956675023,-559.71,0.00040135,20]
[393735856,1762956675033,-559.71,0.00040135,20]
[393735857,1762956675042,-559.71,0.00040135,20]
[393735858,1762956675052,-559.71,0.00040135,20]
[393735859,1762956675061,-559.75862474,0.00040135,20]
[393735860,1762956675071,-680.4,0.00040135,20]
[393735861,1762956675080,-680.4,0.00040135,20]
[393735862,1762956675089,-680.4,0.00040135,20]
[393735863,1762956675102,-680.4,0.00040135,20]
[393735864,1762956675113,-680.4,0.00040135,20]
[393735865,1762956675122,-680.4,0.00040135,20]
[393735866,1762956675131,-680.4,0.00040135,20]
[393735867,1762956675140,-680.4,0.00040135,20]
[393735868,1762956675150,-680.50584244,0.00040135,20]
[393735869,1762956675159,-500.0,0.00040135,20]
[393735870,1762956675168,-500.0,0.00040135,20]
[393735871,1762956675178,-500.0,0.00040135,20]
[393735872,1762956675188,-575.27494272,0.00040135,20]
[393735873,1762956675197,-749.36,0.00040135,20]
[393735874,1762956675207,-749.36,0.00040135,20]
[393735875,1762956675217,-749.36,0.00040135,20]
[393735876,1762956675226,-749.36,0.00040135,20]
[393735877,1762956675236,-749.36,0.00040135,20]
[393735878,1762956675246,-749.36,0.00040135,20]
[393735879,1762956675255,-749.36,0.00040135,20]
[393735880,1762956675265,-749.36,0.00040135,20]
[393735881,1762956675274,-749.44430696,0.00040135,20]
[393735882,1762956675284,-500.0,0.00040135,20]
[393735883,1762956675293,-500.0,0.00040135,20]
[393735884,1762956675303,-500.0,0.00040135,20]
[393735885,1762956675312,-500.0,0.00040135,20]
[393735886,1762956675322,-500.0,0.00040135,20]
[393735887,1762956675330,-622.83,0.00040135,20]
[393735888,1762956675339,-500.0,0.00040135,20]
[393735889,1762956675349,-622.83,0.00040135,20]
[393735890,1762956675358,-500.0,0.00040135,20]
[393735891,1762956675367,-439.92710093,0.00040135,20]
[393735892,1762956675375,-622.83,0.00040135,20]
[393735893,1762956675385,-500.0,0.00040135,20]
[393735894,1762956675394,-622.83,0.00040135,20]
[393735895,1762956675403,-195.30848449,0.00040135,20]
[393735896,1762956675413,-622.83,0.00040135,20]
[393735897,1762956675422,-622.83,0.00040135,20]
[393735898,1762956675431,-622.83,0.00040135,20]
[393735899,1762956675441,-622.83,0.00040135,20]
[393735900,1762956675450,-623.00596481,0.00040135,20]
[393735901,1762956675459,-500.0,0.00040135,20]
[393735902,1762956675468,-500.0,0.00040135,20]
[393735903,1762956675477,-500.0,0.00040135,20]